[Event "Late-Titled-Tuesday-Blitz-January-16-2024"]
[Site "Chess.com"]
[Date "2024.01.16"]
[Round "4"]
[White "vidavi"]
[Black "Caterpiller35"]
[Result "1-0"]
[WhiteElo "2486"]
[BlackElo "2618"]
[TimeControl "180+1"]
[EndTime "14:36:48 PST"]
[Termination "vidavi won by resignation"]

1. Nf3 {[%clk 0:03:00.9]} 1... Nf6 {[%clk 0:02:58.2]} 2. d4 {[%clk 0:03:00.9]}
2... e6 {[%clk 0:02:57.8]} 3. c4 {[%clk 0:03:01.5]} 3... Bb4+ {[%clk 0:02:57.7]}
4. Bd2 {[%clk 0:03:00.6]} 4... Qe7 {[%clk 0:02:58.1]} 5. g3 {[%clk 0:03:00.2]}
5... Nc6 {[%clk 0:02:58.4]} 6. Nc3 {[%clk 0:02:59]} 6... d6 {[%clk 0:02:58.4]}
7. Bg2 {[%clk 0:02:57.2]} 7... O-O {[%clk 0:02:58.3]} 8. O-O {[%clk 0:02:56.5]}
8... e5 {[%clk 0:02:58.7]} 9. d5 {[%clk 0:02:54.6]} 9... Nb8 {[%clk 0:02:56.4]}
10. a3 {[%clk 0:02:49.9]} 10... Bxc3 {[%clk 0:02:54.2]} 11. Bxc3 {[%clk
0:02:50.8]} 11... Ne4 {[%clk 0:02:43.7]} 12. Be1 {[%clk 0:02:29.7]} 12... Nd7
{[%clk 0:02:38.5]} 13. Rc1 {[%clk 0:02:28.3]} 13... b6 {[%clk 0:02:38.2]} 14.
Nd2 {[%clk 0:02:27.5]} 14... Nxd2 {[%clk 0:02:36.8]} 15. Bxd2 {[%clk 0:02:25.9]}
15... a5 {[%clk 0:02:35.6]} 16. e4 {[%clk 0:02:06]} 16... a4 {[%clk 0:02:28.1]}
17. f4 {[%clk 0:02:03.7]} 17... exf4 {[%clk 0:02:27.4]} 18. gxf4 {[%clk
0:02:00.7]} 18... f5 {[%clk 0:02:27.6]} 19. e5 {[%clk 0:01:59.1]} 19... Nc5
{[%clk 0:02:05.9]} 20. e6 {[%clk 0:01:53]} 20... c6 {[%clk 0:01:53.1]} 21. Rc3
{[%clk 0:01:41.2]} 21... b5 {[%clk 0:01:49.8]} 22. cxb5 {[%clk 0:01:13.3]} 22...
cxb5 {[%clk 0:01:29.7]} 23. Be3 {[%clk 0:01:02.4]} 23... Ne4 {[%clk 0:01:23.5]}
24. Bxe4 {[%clk 0:00:55.3]} 24... fxe4 {[%clk 0:01:24.4]} 25. Qc2 {[%clk
0:00:55.5]} 25... b4 {[%clk 0:01:18.8]} 26. Rc7 {[%clk 0:00:54.4]} 26... Qf6
{[%clk 0:01:03.5]} 27. Qxe4 {[%clk 0:00:44.4]} 27... Qg6+ {[%clk 0:00:21.6]} 28.
Qxg6 {[%clk 0:00:42.3]} 28... hxg6 {[%clk 0:00:22.5]} 29. Bd4 {[%clk 0:00:41.7]}
1-0

[Event "Late-Titled-Tuesday-Blitz-January-16-2024"]
[Site "Chess.com"]
[Date "2024.01.16"]
[Round "4"]
[White "Chempiblinka"]
[Black "agvega14"]
[Result "1-0"]
[WhiteElo "2298"]
[BlackElo "2125"]
[TimeControl "180+1"]
[EndTime "14:36:53 PST"]
[Termination "Chempiblinka won by resignation"]

1. Nf3 {[%clk 0:03:00.9]} 1... d5 {[%clk 0:02:54.5]} 2. g3 {[%clk 0:03:01.8]}
2... Nf6 {[%clk 0:02:54.1]} 3. Bg2 {[%clk 0:03:02.7]} 3... Bf5 {[%clk
0:02:52.5]} 4. c4 {[%clk 0:03:02.3]} 4... e6 {[%clk 0:02:51.2]} 5. O-O {[%clk
0:03:00.3]} 5... c6 {[%clk 0:02:51.1]} 6. cxd5 {[%clk 0:02:54.9]} 6... exd5
{[%clk 0:02:50.5]} 7. d3 {[%clk 0:02:53.7]} 7... h6 {[%clk 0:02:47.2]} 8. Nc3
{[%clk 0:02:53.8]} 8... Bh7 {[%clk 0:02:44.1]} 9. e4 {[%clk 0:02:52.2]} 9...
dxe4 {[%clk 0:02:38.5]} 10. dxe4 {[%clk 0:02:53.1]} 10... Qxd1 {[%clk
0:02:30.3]} 11. Rxd1 {[%clk 0:02:54]} 11... Bc5 {[%clk 0:02:03.5]} 12. e5 {[%clk
0:02:50.2]} 12... Ng4 {[%clk 0:02:00.9]} 13. Nd4 {[%clk 0:02:31.9]} 13... O-O
{[%clk 0:01:50.9]} 14. f4 {[%clk 0:02:19.4]} 14... h5 {[%clk 0:01:42.7]} 15. h3
{[%clk 0:02:17.2]} 15... Nh6 {[%clk 0:01:42.3]} 16. Kh2 {[%clk 0:02:16.1]} 16...
Na6 {[%clk 0:01:40]} 17. Be3 {[%clk 0:01:58.7]} 17... Rad8 {[%clk 0:01:34.8]}
18. Bf3 {[%clk 0:01:56.5]} 18... Bg6 {[%clk 0:01:27.6]} 19. Ne4 {[%clk
0:01:53.5]} 19... Bxd4 {[%clk 0:01:22]} 20. Bxd4 {[%clk 0:01:49.9]} 20... Nf5
{[%clk 0:01:21.8]} 21. Bc3 {[%clk 0:01:45.2]} 21... Nc7 {[%clk 0:01:16.5]} 22.
g4 {[%clk 0:01:41.4]} 22... hxg4 {[%clk 0:01:15]} 23. hxg4 {[%clk 0:01:42.3]}
23... Ne3 {[%clk 0:00:50.8]} 24. Rxd8 {[%clk 0:01:37.5]} 24... Rxd8 {[%clk
0:00:50.7]} 25. f5 {[%clk 0:01:37.4]} 25... Bh7 {[%clk 0:00:49.3]} 26. Nd6
{[%clk 0:01:31.4]} 26... b6 {[%clk 0:00:43]} 27. Re1 {[%clk 0:01:16.9]} 27...
Ncd5 {[%clk 0:00:38.8]} 28. Bd2 {[%clk 0:01:09.2]} 28... Nc4 {[%clk 0:00:37.7]}
29. Nxc4 {[%clk 0:00:47.7]} 29... b5 {[%clk 0:00:17.7]} 30. Nd6 {[%clk
0:00:43.9]} 1-0

[Event "Late-Titled-Tuesday-Blitz-January-16-2024"]
[Site "Chess.com"]
[Date "2024.01.16"]
[Round "4"]
[White "topce"]
[Black "Championnn-9"]
[Result "0-1"]
[WhiteElo "2357"]
[BlackElo "2533"]
[TimeControl "180+1"]
[EndTime "14:36:55 PST"]
[Termination "Championnn-9 won by checkmate"]

1. c4 {[%clk 0:03:00.9]} 1... Nf6 {[%clk 0:02:54.7]} 2. Nc3 {[%clk 0:02:59.2]}
2... g6 {[%clk 0:02:52.8]} 3. e4 {[%clk 0:02:58.7]} 3... c5 {[%clk 0:02:52.3]}
4. Nf3 {[%clk 0:02:57.2]} 4... Nc6 {[%clk 0:02:50.6]} 5. d4 {[%clk 0:02:56.9]}
5... cxd4 {[%clk 0:02:49.5]} 6. Nxd4 {[%clk 0:02:57.8]} 6... d6 {[%clk
0:02:46.3]} 7. Be2 {[%clk 0:02:56.2]} 7... Bg7 {[%clk 0:02:46.2]} 8. Be3 {[%clk
0:02:55.9]} 8... O-O {[%clk 0:02:42]} 9. O-O {[%clk 0:02:55]} 9... Nxd4 {[%clk
0:02:41]} 10. Bxd4 {[%clk 0:02:55]} 10... Be6 {[%clk 0:02:41.3]} 11. Rc1 {[%clk
0:02:52.2]} 11... Rc8 {[%clk 0:02:36.4]} 12. b3 {[%clk 0:02:51.7]} 12... Qa5
{[%clk 0:02:33.8]} 13. f3 {[%clk 0:02:44.1]} 13... Nd7 {[%clk 0:02:31.1]} 14.
Bxg7 {[%clk 0:02:39.9]} 14... Kxg7 {[%clk 0:02:32]} 15. Kh1 {[%clk 0:02:39.9]}
15... a6 {[%clk 0:02:28.8]} 16. f4 {[%clk 0:02:37.5]} 16... f6 {[%clk
0:02:18.9]} 17. Bd3 {[%clk 0:02:31.5]} 17... b5 {[%clk 0:02:16.2]} 18. f5 {[%clk
0:02:26.5]} 18... Bf7 {[%clk 0:02:12.1]} 19. Qe2 {[%clk 0:02:04.5]} 19... bxc4
{[%clk 0:02:07.3]} 20. Bxc4 {[%clk 0:02:02.2]} 20... Bxc4 {[%clk 0:02:06.7]} 21.
bxc4 {[%clk 0:02:01.6]} 21... Ne5 {[%clk 0:02:07]} 22. Nd5 {[%clk 0:02:00.1]}
22... Rfe8 {[%clk 0:01:55.1]} 23. Nf4 {[%clk 0:01:42.8]} 23... Qa4 {[%clk
0:01:44.7]} 24. Ne6+ {[%clk 0:01:40.1]} 24... Kg8 {[%clk 0:01:27.8]} 25. Qd2
{[%clk 0:01:24.6]} 25... g5 {[%clk 0:01:25.9]} 26. Qe2 {[%clk 0:01:24]} 26...
Rxc4 {[%clk 0:01:13.7]} 27. Qh5 {[%clk 0:01:19.9]} 27... Nf7 {[%clk 0:01:13.3]}
28. Rce1 {[%clk 0:00:19.2]} 28... Rxe4 {[%clk 0:01:06.9]} 29. Rxe4 {[%clk
0:00:19.8]} 29... Qxe4 {[%clk 0:01:07]} 30. Kg1 {[%clk 0:00:11.9]} 30... Rc8
{[%clk 0:01:04.2]} 31. Qd1 {[%clk 0:00:08.4]} 31... Rc2 {[%clk 0:01:01.2]} 32.
Rf2 {[%clk 0:00:04.3]} 32... Rxf2 {[%clk 0:01:01.2]} 33. Kxf2 {[%clk 0:00:05.2]}
33... Qxf5+ {[%clk 0:01:01.6]} 34. Kg1 {[%clk 0:00:04.2]} 34... Qxe6 {[%clk
0:01:01]} 35. Qa4 {[%clk 0:00:02.7]} 35... Qe1# {[%clk 0:01:00.3]} 0-1

[Event "Late-Titled-Tuesday-Blitz-January-16-2024"]
[Site "Chess.com"]
[Date "2024.01.16"]
[Round "4"]
[White "trriinu"]
[Black "sjoerd893"]
[Result "0-1"]
[WhiteElo "2170"]
[BlackElo "2493"]
[TimeControl "180+1"]
[EndTime "14:36:56 PST"]
[Termination "sjoerd893 won on time"]

1. e4 {[%clk 0:03:00.3]} 1... d5 {[%clk 0:03:00.4]} 2. exd5 {[%clk 0:03:00.3]}
2... Qxd5 {[%clk 0:03:01.3]} 3. Nc3 {[%clk 0:03:00.5]} 3... Qa5 {[%clk 0:03:02]}
4. Bc4 {[%clk 0:02:58.3]} 4... Nf6 {[%clk 0:02:59.9]} 5. d3 {[%clk 0:02:58.6]}
5... e6 {[%clk 0:02:58.3]} 6. Nf3 {[%clk 0:02:57.2]} 6... Nbd7 {[%clk
0:02:53.2]} 7. O-O {[%clk 0:02:55.4]} 7... a6 {[%clk 0:02:47.5]} 8. Qe2 {[%clk
0:02:42.1]} 8... Be7 {[%clk 0:02:39.3]} 9. Nd4 {[%clk 0:02:18]} 9... Qe5 {[%clk
0:02:19.4]} 10. Be3 {[%clk 0:02:08.5]} 10... c5 {[%clk 0:02:11.5]} 11. f4 {[%clk
0:01:31.6]} 11... Qc7 {[%clk 0:02:04.2]} 12. Nf3 {[%clk 0:01:22.4]} 12... b5
{[%clk 0:02:03.8]} 13. Bb3 {[%clk 0:01:19.6]} 13... Bb7 {[%clk 0:02:02.1]} 14.
Rae1 {[%clk 0:01:11.1]} 14... O-O {[%clk 0:02:01.1]} 15. Ng5 {[%clk 0:00:51.7]}
15... Nd5 {[%clk 0:01:55.1]} 16. Nce4 {[%clk 0:00:36.7]} 16... h6 {[%clk
0:01:46]} 17. Nh3 {[%clk 0:00:31.6]} 17... Nxe3 {[%clk 0:01:40.6]} 18. Qxe3
{[%clk 0:00:31.4]} 18... c4 {[%clk 0:01:35.8]} 19. dxc4 {[%clk 0:00:29.9]} 19...
bxc4 {[%clk 0:01:36.7]} 20. Ba4 {[%clk 0:00:27.4]} 20... Nc5 {[%clk 0:01:36.8]}
21. Nc3 {[%clk 0:00:17]} 21... Bf6 {[%clk 0:01:16.4]} 22. Nf2 {[%clk 0:00:02.8]}
22... Bxc3 {[%clk 0:01:14.8]} 23. Qxc3 {[%clk 0:00:01.8]} 23... Nxa4 {[%clk
0:01:15]} 24. Qg3 {[%clk 0:00:02.1]} 24... Nxb2 {[%clk 0:01:10.6]} 25. Ng4
{[%clk 0:00:02.4]} 25... Kh8 {[%clk 0:01:09.4]} 26. Re5 {[%clk 0:00:02.5]} 26...
f5 {[%clk 0:01:00.1]} 27. Ne3 {[%clk 0:00:02]} 27... Bd5 {[%clk 0:00:56.3]} 28.
Kh1 {[%clk 0:00:01.5]} 28... c3 {[%clk 0:00:56.1]} 29. Qh4 {[%clk 0:00:01.1]}
29... Nc4 {[%clk 0:00:51.8]} 0-1

[Event "Late-Titled-Tuesday-Blitz-January-16-2024"]
[Site "Chess.com"]
[Date "2024.01.16"]
[Round "4"]
[White "FairChess_on_YouTube"]
[Black "Bauman_Guy"]
[Result "1-0"]
[WhiteElo "3103"]
[BlackElo "2905"]
[TimeControl "180+1"]
[EndTime "14:37:01 PST"]
[Termination "FairChess_on_YouTube won by resignation"]

1. Nf3 {[%clk 0:02:55.7]} 1... d5 {[%clk 0:02:58.9]} 2. g3 {[%clk 0:02:54.7]}
2... c6 {[%clk 0:02:58.9]} 3. Bg2 {[%clk 0:02:55.2]} 3... Bg4 {[%clk 0:02:59.5]}
4. c4 {[%clk 0:02:54.8]} 4... Nd7 {[%clk 0:02:59.6]} 5. cxd5 {[%clk 0:02:54]}
5... cxd5 {[%clk 0:02:59.9]} 6. Nc3 {[%clk 0:02:52.8]} 6... e6 {[%clk
0:02:58.9]} 7. O-O {[%clk 0:02:52.8]} 7... Ngf6 {[%clk 0:02:58.8]} 8. d3 {[%clk
0:02:53.1]} 8... Bd6 {[%clk 0:02:58.7]} 9. e4 {[%clk 0:02:47]} 9... O-O {[%clk
0:02:55.5]} 10. h3 {[%clk 0:02:45.3]} 10... Bh5 {[%clk 0:02:55.1]} 11. exd5
{[%clk 0:02:33.9]} 11... Nxd5 {[%clk 0:02:51.1]} 12. Nxd5 {[%clk 0:02:34]} 12...
exd5 {[%clk 0:02:51.4]} 13. Qb3 {[%clk 0:02:34.6]} 13... Nb6 {[%clk 0:02:39]}
14. Be3 {[%clk 0:02:32.4]} 14... Re8 {[%clk 0:02:34.9]} 15. Rfe1 {[%clk
0:02:30.5]} 15... Rc8 {[%clk 0:01:55.8]} 16. a4 {[%clk 0:02:29.7]} 16... Bc5
{[%clk 0:01:36.7]} 17. Bxc5 {[%clk 0:02:16.8]} 17... Rxe1+ {[%clk 0:01:34.9]}
18. Nxe1 {[%clk 0:02:17.4]} 18... Rxc5 {[%clk 0:01:34.1]} 19. a5 {[%clk
0:02:17.9]} 19... Nc8 {[%clk 0:01:21.2]} 20. Qxb7 {[%clk 0:02:17.4]} 20... h6
{[%clk 0:01:11]} 21. b4 {[%clk 0:02:08.9]} 21... Rc7 {[%clk 0:01:11.2]} 22. Qxd5
{[%clk 0:02:08]} 22... Qf6 {[%clk 0:01:11.9]} 23. d4 {[%clk 0:01:53.5]} 23...
Bg6 {[%clk 0:01:12]} 24. Qe5 {[%clk 0:01:45.6]} 24... Qd8 {[%clk 0:01:10]} 25.
b5 {[%clk 0:01:43]} 25... Re7 {[%clk 0:01:04.1]} 26. Qd5 {[%clk 0:01:39.9]}
26... Rd7 {[%clk 0:01:03.7]} 27. Qa8 {[%clk 0:01:37.9]} 27... Kh7 {[%clk
0:00:49.4]} 28. Rc1 {[%clk 0:01:30.3]} 28... Rc7 {[%clk 0:00:45.2]} 29. Rxc7
{[%clk 0:01:28.1]} 29... Qxc7 {[%clk 0:00:46.1]} 30. Nf3 {[%clk 0:01:23.6]}
30... Bd3 {[%clk 0:00:38.6]} 31. Qc6 {[%clk 0:01:11.7]} 31... Qxc6 {[%clk
0:00:32.4]} 32. bxc6 {[%clk 0:01:12.6]} 32... f6 {[%clk 0:00:33.3]} 33. d5
{[%clk 0:01:09]} 33... Kg8 {[%clk 0:00:28.3]} 34. Nd4 {[%clk 0:01:00.2]} 34...
Kf7 {[%clk 0:00:25.4]} 35. Bf1 {[%clk 0:00:59.8]} 35... Be4 {[%clk 0:00:23.5]}
36. Ba6 {[%clk 0:00:59.1]} 36... Nd6 {[%clk 0:00:20.8]} 37. c7 {[%clk
0:00:58.7]} 37... Ke7 {[%clk 0:00:17.3]} 38. Nb5 {[%clk 0:00:58.7]} 1-0

[Event "Late-Titled-Tuesday-Blitz-January-16-2024"]
[Site "Chess.com"]
[Date "2024.01.16"]
[Round "4"]
[White "Nouali_Mohamed"]
[Black "mbchess97"]
[Result "1-0"]
[WhiteElo "2549"]
[BlackElo "2396"]
[TimeControl "180+1"]
[EndTime "14:37:02 PST"]
[Termination "Nouali_Mohamed won on time"]

1. e4 {[%clk 0:02:56.1]} 1... c5 {[%clk 0:02:59.6]} 2. Nf3 {[%clk 0:02:30]} 2...
d6 {[%clk 0:02:59.2]} 3. d4 {[%clk 0:02:30.3]} 3... cxd4 {[%clk 0:02:59.6]} 4.
Nxd4 {[%clk 0:02:31.2]} 4... Nf6 {[%clk 0:03:00]} 5. Nc3 {[%clk 0:02:31.7]} 5...
Nc6 {[%clk 0:02:59.9]} 6. Bc4 {[%clk 0:02:31.3]} 6... Qb6 {[%clk 0:02:51.9]} 7.
Ndb5 {[%clk 0:02:31.4]} 7... a6 {[%clk 0:02:39.3]} 8. Be3 {[%clk 0:02:31.3]}
8... Qa5 {[%clk 0:02:31]} 9. Nd4 {[%clk 0:02:31]} 9... Nxe4 {[%clk 0:02:21.9]}
10. Qf3 {[%clk 0:02:21.3]} 10... Ne5 {[%clk 0:02:06]} 11. Bxf7+ {[%clk
0:02:17.8]} 11... Nxf7 {[%clk 0:02:02]} 12. Qxe4 {[%clk 0:02:18.5]} 12... e5
{[%clk 0:01:29.6]} 13. O-O-O {[%clk 0:02:08.5]} 13... Be7 {[%clk 0:01:22.8]} 14.
Nb3 {[%clk 0:02:03.3]} 14... Qd8 {[%clk 0:01:14.9]} 15. Nd5 {[%clk 0:02:01.2]}
15... O-O {[%clk 0:01:12.7]} 16. Bb6 {[%clk 0:01:28]} 16... Qd7 {[%clk
0:01:03.5]} 17. h4 {[%clk 0:01:19]} 17... Bd8 {[%clk 0:00:54.5]} 18. g4 {[%clk
0:01:11.5]} 18... Qxg4 {[%clk 0:00:36.4]} 19. Qe3 {[%clk 0:01:09.7]} 19... Qe6
{[%clk 0:00:27]} 20. Bxd8 {[%clk 0:01:01.9]} 20... Nxd8 {[%clk 0:00:18.9]} 21.
Nc7 {[%clk 0:01:01.4]} 21... Qf7 {[%clk 0:00:16.2]} 22. Nxa8 {[%clk 0:01:01.3]}
22... Bg4 {[%clk 0:00:16.1]} 23. Rxd6 {[%clk 0:00:57.8]} 23... Nc6 {[%clk
0:00:15.1]} 24. Nb6 {[%clk 0:00:56.4]} 24... Bf3 {[%clk 0:00:13.9]} 25. Rg1
{[%clk 0:00:55.5]} 25... Nb4 {[%clk 0:00:12]} 26. Qxe5 {[%clk 0:00:50.4]} 26...
Nc6 {[%clk 0:00:04.2]} 27. Qg3 {[%clk 0:00:46.2]} 1-0

[Event "Late-Titled-Tuesday-Blitz-January-16-2024"]
[Site "Chess.com"]
[Date "2024.01.16"]
[Round "4"]
[White "anasta10"]
[Black "Goryachkina"]
[Result "1/2-1/2"]
[WhiteElo "2535"]
[BlackElo "2692"]
[TimeControl "180+1"]
[EndTime "14:37:08 PST"]
[Termination "Game drawn by repetition"]

1. Nf3 {[%clk 0:03:00.9]} 1... c5 {[%clk 0:02:58.6]} 2. g3 {[%clk 0:03:01.3]}
2... g6 {[%clk 0:02:57.6]} 3. Bg2 {[%clk 0:03:01.8]} 3... Bg7 {[%clk 0:02:57.9]}
4. O-O {[%clk 0:03:02.5]} 4... Nf6 {[%clk 0:02:57.3]} 5. c4 {[%clk 0:03:03]}
5... Nc6 {[%clk 0:02:55.7]} 6. Nc3 {[%clk 0:03:03.6]} 6... d6 {[%clk 0:02:55.7]}
7. b3 {[%clk 0:03:03.6]} 7... O-O {[%clk 0:02:39.9]} 8. Bb2 {[%clk 0:03:03.5]}
8... e5 {[%clk 0:02:39.9]} 9. d3 {[%clk 0:03:01.8]} 9... Be6 {[%clk 0:02:35]}
10. a3 {[%clk 0:02:58.2]} 10... h6 {[%clk 0:02:29.7]} 11. Ne1 {[%clk 0:02:56]}
11... Qd7 {[%clk 0:02:17.3]} 12. Nc2 {[%clk 0:02:55.6]} 12... Bh3 {[%clk
0:02:15.9]} 13. b4 {[%clk 0:02:52.8]} 13... Bxg2 {[%clk 0:02:13.8]} 14. Kxg2
{[%clk 0:02:53.1]} 14... b6 {[%clk 0:02:14]} 15. b5 {[%clk 0:02:38.5]} 15... Ne7
{[%clk 0:02:13.5]} 16. e4 {[%clk 0:02:37.7]} 16... Nh7 {[%clk 0:02:06.8]} 17. a4
{[%clk 0:02:31]} 17... f5 {[%clk 0:02:06.3]} 18. f3 {[%clk 0:02:31.4]} 18... f4
{[%clk 0:02:04.6]} 19. g4 {[%clk 0:02:09.1]} 19... h5 {[%clk 0:02:03.9]} 20. h3
{[%clk 0:02:09.5]} 20... Kf7 {[%clk 0:02:02.9]} 21. Kf2 {[%clk 0:02:09.4]} 21...
Ng5 {[%clk 0:02:01.3]} 22. Rh1 {[%clk 0:02:08.9]} 22... Rh8 {[%clk 0:01:56]} 23.
Qf1 {[%clk 0:01:45.1]} 23... Bf6 {[%clk 0:01:39.6]} 24. Ke2 {[%clk 0:01:38.2]}
24... Rh7 {[%clk 0:01:29]} 25. Qg2 {[%clk 0:01:14.1]} 25... Rah8 {[%clk
0:01:17.3]} 26. Rag1 {[%clk 0:00:54.8]} 26... Ne6 {[%clk 0:01:10.3]} 27. Kd1
{[%clk 0:00:48.6]} 27... Bh4 {[%clk 0:01:02.1]} 28. Ne2 {[%clk 0:00:47.9]} 28...
a6 {[%clk 0:00:57.7]} 29. Bc3 {[%clk 0:00:46]} 29... a5 {[%clk 0:00:45]} 30. Kc1
{[%clk 0:00:41.9]} 30... Bf6 {[%clk 0:00:27.6]} 31. Kb2 {[%clk 0:00:40.3]} 31...
Qc8 {[%clk 0:00:23.9]} 32. Nc1 {[%clk 0:00:38.7]} 32... Bh4 {[%clk 0:00:19.7]}
33. Ne2 {[%clk 0:00:38.2]} 33... Bf6 {[%clk 0:00:19]} 34. Nc1 {[%clk 0:00:38.3]}
34... Bh4 {[%clk 0:00:19.4]} 35. Ne2 {[%clk 0:00:38.4]} 35... Bf6 {[%clk
0:00:19.7]} 1/2-1/2

[Event "Late-Titled-Tuesday-Blitz-January-16-2024"]
[Site "Chess.com"]
[Date "2024.01.16"]
[Round "4"]
[White "Langua_Chess"]
[Black "Navyblue1"]
[Result "1-0"]
[WhiteElo "2458"]
[BlackElo "2190"]
[TimeControl "180+1"]
[EndTime "14:37:08 PST"]
[Termination "Langua_Chess won on time"]

1. e4 {[%clk 0:03:00.9]} 1... c5 {[%clk 0:02:57.3]} 2. Nf3 {[%clk 0:03:00.8]}
2... d6 {[%clk 0:02:56.6]} 3. d4 {[%clk 0:03:00.9]} 3... cxd4 {[%clk 0:02:57.3]}
4. Nxd4 {[%clk 0:03:01.8]} 4... Nf6 {[%clk 0:02:57.4]} 5. Nc3 {[%clk 0:03:02.2]}
5... a6 {[%clk 0:02:57.5]} 6. Rg1 {[%clk 0:02:59.3]} 6... e5 {[%clk 0:02:55.9]}
7. Nb3 {[%clk 0:02:57.2]} 7... h5 {[%clk 0:02:49.1]} 8. h3 {[%clk 0:02:57.7]}
8... Be6 {[%clk 0:02:33.4]} 9. g4 {[%clk 0:02:50.4]} 9... hxg4 {[%clk
0:02:32.4]} 10. hxg4 {[%clk 0:02:51.3]} 10... Nc6 {[%clk 0:02:27.3]} 11. g5
{[%clk 0:02:47.9]} 11... Nd7 {[%clk 0:02:23.4]} 12. Nd5 {[%clk 0:02:43.5]} 12...
Bxd5 {[%clk 0:02:16.1]} 13. exd5 {[%clk 0:02:41.6]} 13... Ne7 {[%clk 0:02:15.9]}
14. c4 {[%clk 0:02:35.9]} 14... Rc8 {[%clk 0:02:08.5]} 15. Bd3 {[%clk
0:02:35.2]} 15... g6 {[%clk 0:01:40.2]} 16. Qg4 {[%clk 0:02:34.8]} 16... Bg7
{[%clk 0:01:38.9]} 17. Be3 {[%clk 0:02:32]} 17... Qc7 {[%clk 0:01:37.7]} 18. Nd2
{[%clk 0:02:30.3]} 18... Nc5 {[%clk 0:01:32.6]} 19. Bc2 {[%clk 0:02:26.3]} 19...
a5 {[%clk 0:01:07.1]} 20. Ke2 {[%clk 0:02:19.7]} 20... Qd7 {[%clk 0:00:55.4]}
21. Qf3 {[%clk 0:02:06.9]} 21... Nf5 {[%clk 0:00:44.3]} 22. Rab1 {[%clk
0:01:57.3]} 22... Nxe3 {[%clk 0:00:41]} 23. Qxe3 {[%clk 0:01:51.8]} 23... Rh3
{[%clk 0:00:29.5]} 24. Rg3 {[%clk 0:01:51.8]} 24... Rxg3 {[%clk 0:00:26.1]} 25.
Qxg3 {[%clk 0:01:52.5]} 25... Ke7 {[%clk 0:00:26.2]} 26. Rh1 {[%clk 0:01:50.6]}
26... Rh8 {[%clk 0:00:20.7]} 27. Rxh8 {[%clk 0:01:50.2]} 27... Bxh8 {[%clk
0:00:20.7]} 28. Nf1 {[%clk 0:01:46]} 28... Bg7 {[%clk 0:00:20.6]} 29. Ne3 {[%clk
0:01:46.3]} 29... Qe8 {[%clk 0:00:19]} 30. b3 {[%clk 0:01:34]} 30... Qh8 {[%clk
0:00:18.5]} 31. Qg4 {[%clk 0:01:12.8]} 31... Qh1 {[%clk 0:00:12.3]} 32. Bd1
{[%clk 0:01:12.4]} 32... Qe4 {[%clk 0:00:09.9]} 33. Qc8 {[%clk 0:01:10.3]} 33...
Qb1 {[%clk 0:00:04.2]} 34. Qc7+ {[%clk 0:01:09.8]} 34... Nd7 {[%clk 0:00:03.3]}
35. c5 {[%clk 0:00:58.2]} 35... Qxa2+ {[%clk 0:00:03]} 36. Kf1 {[%clk
0:00:57.5]} 36... dxc5 {[%clk 0:00:01.9]} 37. d6+ {[%clk 0:00:58.4]} 37... Ke6
{[%clk 0:00:01.5]} 38. Be2 {[%clk 0:00:57.5]} 1-0

[Event "Late-Titled-Tuesday-Blitz-January-16-2024"]
[Site "Chess.com"]
[Date "2024.01.16"]
[Round "4"]
[White "wild3000"]
[Black "HaryKane"]
[Result "1-0"]
[WhiteElo "2382"]
[BlackElo "2545"]
[TimeControl "180+1"]
[EndTime "14:37:13 PST"]
[Termination "wild3000 won by resignation"]

1. g3 {[%clk 0:02:45.6]} 1... e6 {[%clk 0:02:58.4]} 2. Bg2 {[%clk 0:02:45]} 2...
d5 {[%clk 0:02:59.1]} 3. d4 {[%clk 0:02:44.6]} 3... f5 {[%clk 0:02:59.5]} 4. c4
{[%clk 0:02:43.1]} 4... Nf6 {[%clk 0:02:59.9]} 5. Nc3 {[%clk 0:02:42.4]} 5... c6
{[%clk 0:03:00.5]} 6. Bg5 {[%clk 0:02:40.4]} 6... Bd6 {[%clk 0:02:57]} 7. Nf3
{[%clk 0:02:40.1]} 7... O-O {[%clk 0:02:55.7]} 8. O-O {[%clk 0:02:40]} 8... h6
{[%clk 0:02:55.8]} 9. Bxf6 {[%clk 0:02:38.7]} 9... Qxf6 {[%clk 0:02:56.7]} 10.
e3 {[%clk 0:02:36.6]} 10... b6 {[%clk 0:02:56.9]} 11. a4 {[%clk 0:02:33.5]}
11... Ba6 {[%clk 0:02:56.9]} 12. Nd2 {[%clk 0:02:28.9]} 12... Nd7 {[%clk
0:02:52.7]} 13. Re1 {[%clk 0:02:26.3]} 13... g5 {[%clk 0:02:48.5]} 14. cxd5
{[%clk 0:02:15.5]} 14... exd5 {[%clk 0:02:47.1]} 15. a5 {[%clk 0:02:08.5]} 15...
f4 {[%clk 0:02:44.6]} 16. exf4 {[%clk 0:02:07.4]} 16... gxf4 {[%clk 0:02:44.4]}
17. Qg4+ {[%clk 0:02:05.6]} 17... Kh8 {[%clk 0:02:41.7]} 18. Qxd7 {[%clk
0:01:59]} 18... fxg3 {[%clk 0:02:41.5]} 19. f3 {[%clk 0:01:50.3]} 19... Qxd4+
{[%clk 0:02:29.9]} 20. Kh1 {[%clk 0:01:47.6]} 20... Rad8 {[%clk 0:02:27.9]} 21.
Qxa7 {[%clk 0:01:35.5]} 21... Qxd2 {[%clk 0:02:26.1]} 22. Qxa6 {[%clk
0:01:32.3]} 22... Qg5 {[%clk 0:02:08.1]} 23. h3 {[%clk 0:01:28.2]} 23... Rxf3
{[%clk 0:02:04.7]} 24. Qxb6 {[%clk 0:01:21.9]} 24... Rf2 {[%clk 0:01:56.4]} 25.
a6 {[%clk 0:01:09.3]} 25... Rdf8 {[%clk 0:01:51.1]} 26. Qd4+ {[%clk 0:00:59.6]}
26... Kh7 {[%clk 0:01:43.9]} 27. Rf1 {[%clk 0:00:54.1]} 27... Rxf1+ {[%clk
0:01:07.3]} 28. Rxf1 {[%clk 0:00:52.6]} 28... Rxf1+ {[%clk 0:01:07.9]} 29. Bxf1
{[%clk 0:00:52.6]} 29... g2+ {[%clk 0:01:08.3]} 30. Bxg2 {[%clk 0:00:49.1]}
30... Qg3 {[%clk 0:01:08.3]} 31. Kg1 {[%clk 0:00:48.6]} 31... Qe1+ {[%clk
0:00:59]} 32. Bf1 {[%clk 0:00:46.9]} 32... Qg3+ {[%clk 0:00:58.9]} 33. Bg2
{[%clk 0:00:47]} 33... Bf4 {[%clk 0:00:51.8]} 34. Kf1 {[%clk 0:00:36.1]} 34...
c5 {[%clk 0:00:46.3]} 35. Qxd5 {[%clk 0:00:29.2]} 35... Bg5 {[%clk 0:00:37.7]}
36. Ne2 {[%clk 0:00:26.9]} 36... Qe3 {[%clk 0:00:28.6]} 37. Qe4+ {[%clk
0:00:26]} 1-0